fUST/lending_fUST_20240807
["ID","MTS","AMOUNT","RATE_DAILY","PERIOD"]
[334394712,1723029053253,-500.0,0.00032876,14]
[334394714,1723029053262,-500.0,0.00032876,14]
[334394716,1723029053272,-728.06,0.00032876,14]
[334394718,1723029053281,-500.0,0.00032876,14]
[334394720,1723029053290,-1275.04,0.00032876,14]
[334394722,1723029053300,-455.50374879,0.00032876,14]
[334394724,1723029053309,-500.0,0.00032876,14]
[334394726,1723029053318,-1187.93,0.00032876,14]
[334394728,1723029053328,-645.93,0.00032876,14]
[334394730,1723029053338,-500.0,0.00032876,14]
[334394732,1723029053347,-500.0,0.00032876,14]
[334394734,1723029053356,-1020.1,0.00032876,14]
[334394736,1723029053366,-500.0,0.00032876,14]
[334394738,1723029053376,-523.15514986,0.00032876,14]
[334394740,1723029053386,-500.0,0.00032876,14]
[334394742,1723029053396,-500.0,0.00032876,14]
[334394744,1723029053406,-720.42,0.00032876,14]
[334394746,1723029053416,-500.0,0.00032876,14]
[334394748,1723029053427,-581.74,0.00032876,14]
[334394750,1723029053438,-500.0,0.00032876,14]
[334394752,1723029053450,-500.0,0.00032876,14]
[334394755,1723029053462,-923.4,0.00032876,14]
[334394757,1723029053472,-569.12686434,0.00032876,14]
[334394759,1723029053481,-500.0,0.00032876,14]
[334394760,1723029053490,-500.0,0.00032876,14]
[334394762,1723029053499,-506.92874567,0.00032876,14]
[334394764,1723029053510,-500.0,0.00032876,14]
[334394766,1723029053519,-534.66,0.00032876,14]
[334394768,1723029053528,-548.72,0.00032876,14]
[334394770,1723029053537,-671.94,0.00032876,14]
[334394772,1723029053547,-2664.41,0.00032876,14]
[334394774,1723029053556,-500.0,0.00032876,14]
[334394776,1723029053565,-1512.23,0.00032876,14]
[334394778,1723029053578,-1144.37,0.00032876,14]
[334394780,1723029053588,-500.0,0.00032876,14]
[334394782,1723029053597,-628.86772703,0.00032876,14]
[334394784,1723029053606,-518.05,0.00032876,14]
[334394786,1723029053615,-1021.34,0.00032876,14]
[334394788,1723029053625,-500.0,0.00032876,14]
[334394791,1723029053634,-2148.85,0.00032876,14]
[334394793,1723029053643,-500.0,0.00032876,14]
[334394794,1723029053652,-500.0,0.00032876,14]
[334394796,1723029053661,-525.42013243,0.00032876,14]
[334394798,1723029053670,-500.0,0.00032876,14]
[334394800,1723029053679,-500.0,0.00032876,14]
[334394802,1723029053689,-500.0,0.00032876,14]
[334394804,1723029053699,-1093.31,0.00032876,14]
[334394806,1723029053709,-500.0,0.00032876,14]
[334394808,1723029053719,-2807.44,0.00032876,14]
[334394810,1723029053728,-500.0,0.00032876,14]
[334394812,1723029053738,-500.0,0.00032876,14]
[334394814,1723029053748,-500.0,0.00032876,14]
[334394816,1723029053758,-500.0,0.00032876,14]
[334394818,1723029053768,-647.5,0.00032876,14]
[334394819,1723029053777,-2896.75,0.00032876,14]
[334394821,1723029053786,-972.5,0.00032876,14]
[334394823,1723029053796,-500.0,0.00032876,14]
[334394825,1723029053805,-836.81,0.00032876,14]
[334394827,1723029053815,-621.33,0.00032876,14]
[334394829,1723029053825,-500.19832758,0.00032876,14]
[334394831,1723029053835,-500.0,0.00032876,14]
[334394833,1723029053844,-500.0,0.00032876,14]
[334394835,1723029053854,-500.0,0.00032876,14]
[334394837,1723029053864,-202.372434,0.00032876,7]
[334394839,1723029053873,-202.372434,0.00032876,7]
[334394841,1723029053883,-877.3,0.00032876,14]
[334394843,1723029053892,-202.372434,0.00032876,7]
[334394845,1723029053902,-500.0,0.00032876,14]
[334394847,1723029053911,-202.372434,0.00032876,7]
[334394849,1723029053921,-500.0,0.00032876,14]
[334394851,1723029053930,-500.0,0.00032876,14]
[334394852,1723029053940,-500.0,0.00032876,14]
[334394853,1723029053949,-500.0,0.00032876,14]
[334394854,1723029053959,-646.55,0.00032876,14]
[334394855,1723029053968,-500.0,0.00032876,14]
[334394856,1723029053978,-500.0,0.00032876,14]
[334394857,1723029054139,-500.0,0.00032876,14]
[334394858,1723029054150,-811.6,0.00032876,14]
[334394859,1723029054159,-500.0,0.00032876,14]
[334394860,1723029054169,-202.372434,0.00032876,7]
[334394861,1723029054179,-519.26,0.00032876,14]
[334394862,1723029054189,-500.0,0.00032876,14]
[334394863,1723029054200,-202.372434,0.00032876,7]
[334394864,1723029054211,-500.0,0.00032876,14]
[334394866,1723029054221,-500.0,0.00032876,14]
[334394868,1723029054235,-202.372434,0.00032876,7]
[334394870,1723029054246,-500.0,0.00032876,14]
[334394872,1723029054257,-500.0,0.00032876,14]
[334394874,1723029054266,-202.372436,0.00032876,7]
[334394876,1723029054276,-500.0,0.00032876,14]
[334394878,1723029054286,-500.0,0.00032876,14]
[334394880,1723029054295,-438.051972,0.00032876,7]
[334394882,1723029054304,-500.0,0.00032876,14]
[334394884,1723029054313,-438.051972,0.00032876,7]
[334394886,1723029054323,-500.0,0.00032876,14]
[334394888,1723029054333,-500.0,0.00032876,14]
[334394890,1723029054342,-438.051972,0.00032876,7]
[334394892,1723029054352,-500.0,0.00032876,14]
[334394894,1723029054361,-438.051972,0.00032876,7]
[334394896,1723029054371,-500.0,0.00032876,14]
[334394898,1723029054382,-500.0,0.00032876,14]
[334394900,1723029054391,-500.0,0.00032876,14]
[334394902,1723029054401,-500.0,0.00032876,14]
[334394904,1723029054412,-500.0,0.00032876,14]
[334394906,1723029054422,-3787.31,0.00032876,14]
[334394908,1723029054432,-500.0,0.00032876,14]
[334394910,1723029054442,-676.38,0.00032876,14]
[334394912,1723029054454,-500.0,0.00032876,14]
[334394915,1723029054465,-1713.3,0.00032876,14]
[334394917,1723029054474,-500.0,0.00032876,14]
[334394919,1723029054484,-375.27463,0.00032876,7]
[334394921,1723029054495,-375.27463,0.00032876,7]
[334394923,1723029054506,-375.27463,0.00032876,7]
[334394925,1723029054517,-710.82,0.00032876,14]
[334394927,1723029054527,-500.0,0.00032876,14]
[334394929,1723029054538,-500.0,0.00032876,14]
[334394932,1723029054549,-500.0,0.00032876,14]
[334394934,1723029054562,-375.27463,0.00032876,7]
[334394936,1723029054573,-375.27463,0.00032876,7]
[334394938,1723029054583,-3403.09,0.00032876,14]
[334394940,1723029054592,-375.27463,0.00032876,7]
[334394942,1723029054602,-500.0,0.00032876,14]
[334394944,1723029054613,-8008.66,0.00032876,14]
[334394946,1723029054624,-1695.73,0.00032876,14]
[334394948,1723029054635,-500.0,0.00032876,14]
[334394951,1723029054647,-2652.65,0.00032876,14]
[334394953,1723029054658,-500.0,0.00032876,14]
[334394955,1723029054671,-676.41,0.00032876,14]
[334394957,1723029054680,-500.0,0.00032876,14]
[334394959,1723029054689,-520.6130615,0.00032876,14]
[334394961,1723029054699,-500.0,0.00032876,14]
[334394963,1723029054708,-500.0,0.00032876,14]
[334394965,1723029054717,-500.48009937,0.00032876,14]
[334394967,1723029054729,-508.80427827,0.00032876,14]
[334394969,1723029054740,-2000.0,0.00032876,14]
[334394971,1723029054751,-4726.18,0.00032876,14]
[334394973,1723029054762,-631.77,0.00032876,14]
[334394975,1723029054775,-765.56,0.00032876,14]
[334394977,1723029054784,-524.76,0.00032876,14]
[334394979,1723029054793,-500.0,0.00032876,14]
[334394981,1723029054804,-500.63198735,0.00032876,7]
[334394984,1723029054815,-409.020001,0.00032876,7]
[334394986,1723029054829,-500.0,0.00032876,14]
[334394988,1723029054839,-409.020001,0.00032876,7]
[334394990,1723029054849,-409.020001,0.00032876,7]
[334394992,1723029054859,-500.0,0.00032876,14]
[334394994,1723029054869,-331.93414765,0.00032876,14]
[334394996,1723029054879,-596.92,0.00032876,14]
[334394998,1723029054889,-409.020001,0.00032876,7]
[334395000,1723029054899,-503.78874745,0.00032876,14]
[334395002,1723029054909,-409.020001,0.00032876,7]
[334395004,1723029054919,-2772.04,0.00032876,14]
[334395006,1723029054928,-409.019999,0.00032876,7]
[334395008,1723029054938,-500.0,0.00032876,14]
[334395010,1723029054948,-500.0,0.00032876,14]
[334395012,1723029054958,-500.0,0.00032876,14]
[334395014,1723029054967,-500.0,0.00032876,14]
[334395016,1723029054976,-872.47,0.00032876,14]
[334395018,1723029054991,-500.0,0.00032876,14]
[334395020,1723029055001,-500.0,0.00032876,14]
[334395022,1723029055011,-2850.24,0.00032876,14]
[334395024,1723029055021,-2368.38,0.00032876,14]
[334395026,1723029055033,-918.69,0.00032876,14]
[334395028,1723029055042,-151.0,0.00032876,7]
[334395030,1723029055053,-1182.98,0.00032876,14]
[334395032,1723029055063,-151.0,0.00032876,7]
[334395034,1723029055073,-151.0,0.00032876,7]
[334395036,1723029055084,-151.0,0.00032876,7]
[334395038,1723029055094,-151.0,0.00032876,7]
[334395040,1723029055103,-151.0,0.00032876,7]
[334395042,1723029055113,-500.0,0.00032876,14]
[334395044,1723029055123,-500.0,0.00032876,14]
[334395046,1723029055133,-500.0,0.00032876,14]
[334395048,1723029055143,-787.24,0.00032876,14]
[334395050,1723029055152,-501.52075038,0.00032876,14]
[334395052,1723029055162,-500.0,0.00032876,14]
[334395053,1723029055172,-500.0,0.00032876,14]
[334395056,1723029055182,-500.0,0.00032876,14]
[334395058,1723029055191,-500.0,0.00032876,14]
[334395060,1723029055201,-748.79,0.00032876,14]
[334395062,1723029055211,-539.30427819,0.00032876,14]
[334395064,1723029055220,-1373.61,0.00032876,14]
[334395066,1723029055230,-542.21030974,0.00032876,14]
[334395067,1723029055240,-1732.44,0.00032876,14]
[334395070,1723029055251,-500.02643207,0.00032876,14]
[334395072,1723029055261,-500.0,0.00032876,14]
[334395074,1723029055272,-500.75935883,0.00032876,14]
[334395076,1723029055282,-500.0,0.00032876,14]
[334395078,1723029055291,-1008.03,0.00032876,14]
[334395080,1723029055301,-705.51,0.00032876,14]
[334395082,1723029055310,-500.0,0.00032876,14]
[334395084,1723029055319,-151.0,0.00032876,7]
[334395086,1723029055330,-151.0,0.00032876,7]
[334395088,1723029055339,-151.0,0.00032876,7]
[334395090,1723029055349,-5624.94,0.00032876,14]
[334395092,1723029055358,-4673.31,0.00032876,14]
[334395094,1723029055370,-2102.82,0.00032876,14]
[334395096,1723029055380,-683.38,0.00032876,14]
[334395098,1723029055391,-500.0,0.00032876,14]
[334395100,1723029055401,-500.0,0.00032876,14]
[334395102,1723029055411,-500.0,0.00032876,14]
[334395104,1723029055422,-500.0,0.00032876,14]
[334395106,1723029055432,-501.19382013,0.00032876,14]
[334395108,1723029055442,-500.0,0.00032876,14]
[334395110,1723029055453,-501.13848063,0.00032876,14]
[334395112,1723029055463,-500.0,0.00032876,14]
[334395114,1723029055473,-500.0,0.00032876,14]
[334395116,1723029055483,-1201.25,0.00032876,14]
[334395118,1723029055492,-5296.6,0.00032876,14]
[334395120,1723029055502,-500.0,0.00032876,14]
[334395123,1723029055513,-500.0,0.00032876,14]
[334395124,1723029055523,-500.0,0.00032876,14]
[334395126,1723029055532,-500.0,0.00032876,14]
[334395129,1723029055542,-516.24800481,0.00032876,14]
[334395131,1723029055552,-500.0,0.00032876,14]
[334395133,1723029055562,-754.45,0.00032876,14]
[334395135,1723029055571,-363.70863995,0.00032876,14]
[334395137,1723029055583,-500.0,0.00032876,14]
[334395139,1723029055595,-6120.77,0.00032876,14]
[334395141,1723029055604,-500.0,0.00032876,14]
[334395143,1723029055614,-253.367212,0.00032876,7]
[334395145,1723029055623,-4115.44,0.00032876,14]
[334395146,1723029055632,-500.0,0.00032876,14]
[334395148,1723029055642,-2356.09,0.00032876,14]
[334395150,1723029055652,-500.0,0.00032876,6]
[334395153,1723029055662,-1016.46,0.00032876,14]
[334395154,1723029055672,-500.0,0.00032876,14]
[334395155,1723029055681,-500.0,0.00032876,14]
[334395156,1723029055691,-1373.79,0.00032876,14]
[334395157,1723029055701,-27586.24,0.00032876,14]
[334395158,1723029055710,-641.2,0.00032876,14]
[334395159,1723029055719,-501.69605971,0.00032876,14]
[334395160,1723029055729,-551.11,0.00032876,14]
[334395161,1723029055739,-2059.66,0.00032876,14]
[334395162,1723029055749,-884.77,0.00032876,14]
[334395163,1723029055759,-7553.97,0.00032876,14]
[334395164,1723029055768,-1858.24,0.00032876,14]
[334395165,1723029055777,-6001.15,0.00032876,14]
[334395166,1723029055787,-1904.11,0.00032876,14]
[334395167,1723029055796,-500.0,0.00032876,14]
[334395168,1723029055806,-1446.23,0.00032876,14]
[334395169,1723029055815,-3288.86,0.00032876,14]
[334395170,1723029055825,-577.95,0.00032876,14]
[334395171,1723029055840,-569.10391124,0.00032876,14]
[334395172,1723029055849,-500.0,0.00032876,14]
[334395173,1723029055858,-4804.12,0.00032876,14]
[334395174,1723029055867,-509.19,0.00032876,14]
[334395175,1723029055877,-500.0,0.00032876,14]
[334395176,1723029055886,-873.14,0.00032876,14]
[334395177,1723029055895,-3091.7,0.00032876,14]
[334395178,1723029055904,-743.63,0.00032876,14]
[334395179,1723029055913,-1370.13,0.00032876,14]
[334395180,1723029055922,-636.47570336,0.00032876,14]
[334395181,1723029055932,-18095.21,0.00032876,14]
[334395182,1723029055942,-500.0,0.00032876,14]
[334395183,1723029055952,-501.34757948,0.00032876,14]
[334395184,1723029055961,-1609.93,0.00032876,14]
[334395185,1723029055971,-2388.37,0.00032876,14]
[334395186,1723029055981,-500.0,0.00032876,14]
[334395187,1723029055994,-803.5,0.00032876,14]
[334395188,1723029056006,-4013.41,0.00032876,14]
[334395190,1723029056016,-602.9,0.00032876,14]
[334395191,1723029056025,-629.6,0.00032876,14]
[334395193,1723029056036,-2364.63,0.00032876,14]
[334395195,1723029056046,-1184.06,0.00032876,14]
[334395197,1723029056056,-500.0,0.00032876,14]
[334395199,1723029056068,-1150.86,0.00032876,14]
[334395201,1723029056081,-602.76,0.00032876,14]
[334395203,1723029056091,-20279.89,0.00032876,14]
[334395204,1723029056100,-1021.386805,0.00032876,7]
[334395206,1723029056110,-1021.386805,0.00032876,7]
[334395208,1723029056120,-500.0,0.00032876,14]
[334395210,1723029056130,-1021.386805,0.00032876,7]
[334395212,1723029056139,-1372.29,0.00032876,14]
[334395214,1723029056150,-500.0,0.00032876,14]
[334395216,1723029056160,-1021.386801,0.00032876,7]
[334395218,1723029056170,-500.0,0.00032876,14]
[334395220,1723029056179,-500.0,0.00032876,14]
[334395222,1723029056189,-11638.4,0.00032876,14]
[334395224,1723029056200,-185.410821,0.00032876,7]
[334395226,1723029056209,-185.410821,0.00032876,7]
[334395227,1723029056219,-240.52332623,0.00032876,14]
[334395229,1723029056230,-500.0,0.00032876,14]
[334395231,1723029056239,-500.0,0.00032876,14]
[334395233,1723029056249,-185.410821,0.00032876,7]
[334395235,1723029056259,-185.410813,0.00032876,7]
[334395237,1723029056268,-500.0,0.00032876,14]
[334395239,1723029056278,-500.0,0.00032876,14]
[334395241,1723029056287,-1433.62,0.00032876,14]
[334395243,1723029056297,-500.0,0.00032876,14]
[334395244,1723029056308,-512.33502147,0.00032876,14]
[334395246,1723029056318,-761.0,0.00032876,14]
[334395248,1723029056327,-500.0,0.00032876,14]
[334395250,1723029056339,-1750.38,0.00032876,14]
[334395253,1723029056349,-500.0,0.00032876,14]
[334395255,1723029056359,-512.68,0.00032876,14]
[334395257,1723029056368,-500.0,0.00032876,14]
[334395259,1723029056378,-11428.84,0.00032876,14]
[334395261,1723029056388,-500.0,0.00032876,14]
[334395262,1723029056397,-500.0,0.00032876,14]
[334395265,1723029056406,-500.0,0.00032876,14]
[334395267,1723029056416,-746.77,0.00032876,14]
[334395269,1723029056425,-500.0,0.00032876,14]
[334395271,1723029056435,-500.0,0.00032876,14]
[334395273,1723029056445,-500.0,0.00032876,14]
[334395275,1723029056454,-1433.26,0.00032876,14]
[334395277,1723029056463,-507.52420757,0.00032876,14]
[334395278,1723029056473,-2496.12,0.00032876,14]
[334395280,1723029056483,-2356.96,0.00032876,14]
[334395282,1723029056492,-2975.06,0.00032876,14]
[334395283,1723029056503,-3825.94,0.00032876,14]
[334395284,1723029056513,-500.0,0.00032876,14]
[334395285,1723029056522,-1460.03,0.00032876,14]
[334395286,1723029056532,-500.0,0.00032876,14]
[334395287,1723029056541,-1424.73,0.00032876,14]
[334395289,1723029056551,-10865.29,0.00032876,14]
[334395291,1723029056560,-2785.33,0.00032876,14]
[334395293,1723029056569,-500.0,0.00032876,14]
[334395295,1723029056580,-500.0,0.00032876,14]
[334395297,1723029056590,-500.0,0.00032876,14]
[334395299,1723029056600,-500.0,0.00032876,14]
[334395301,1723029056610,-536.47,0.00032876,14]
[334395304,1723029056620,-973.08,0.00032876,14]
[334395306,1723029056629,-500.0,0.00032876,14]
[334395308,1723029056639,-6834.28,0.00032876,14]
[334395310,1723029056649,-795.32,0.00032876,14]
[334395312,1723029056658,-1637.95,0.00032876,14]
[334395314,1723029056667,-500.0,0.00032876,14]
[334395316,1723029056677,-500.0,0.00032876,14]
[334395318,1723029056687,-500.0,0.00032876,14]
[334395320,1723029056696,-500.0,0.00032876,14]
[334395322,1723029056706,-1190.28,0.00032876,14]
[334395324,1723029056716,-500.00012,0.00032876,14]
[334395326,1723029056725,-500.0,0.00032876,14]
[334395328,1723029056735,-500.0,0.00032876,14]
[334395330,1723029056744,-5590.89,0.00032876,14]
[334395332,1723029056753,-500.0,0.00032876,14]
[334395334,1723029056762,-509.26150769,0.00032876,14]
[334395336,1723029056772,-500.0,0.00032876,14]
[334395338,1723029056782,-502.77,0.00032876,14]
[334395340,1723029056792,-2520.26,0.00032876,14]
[334395342,1723029056801,-1612.65,0.00032876,14]
[334395344,1723029056810,-500.0,0.00032876,14]
[334395346,1723029056820,-1790.94,0.00032876,14]
[334395348,1723029056831,-500.0,0.00032876,14]
[334395350,1723029056840,-500.0,0.00032876,14]
[334395352,1723029056850,-508.24918462,0.00032876,14]
[334395354,1723029056859,-1565.92,0.00032876,14]
[334395356,1723029056869,-500.0,0.00032876,14]
[334395358,1723029056878,-739.25,0.00032876,14]
[334395360,1723029056887,-500.0,0.00032876,14]
[334395362,1723029056896,-151.0,0.00032876,7]
[334395364,1723029056905,-500.0,0.00032876,14]
[334395366,1723029056915,-151.0,0.00032876,7]
[334395368,1723029056924,-151.0,0.00032876,7]
[334395370,1723029056933,-502.50405157,0.00032876,14]
[334395371,1723029056943,-728.33,0.00032876,14]
[334395374,1723029056953,-709.69,0.00032876,14]
[334395375,1723029056962,-656.7,0.00032876,14]
[334395377,1723029056971,-2157.08,0.00032876,14]
[334395379,1723029056981,-3407.79,0.00032876,14]
[334395381,1723029056992,-275.2689833,0.00032876,14]
[334395384,1723029057004,-3407.79,0.00032876,14]
[334395385,1723029057014,-549.95287235,0.00032876,14]
[334395387,1723029057023,-3407.79,0.00032876,14]
[334395389,1723029057033,-3407.79,0.00032876,14]
[334395391,1723029057042,-3407.79,0.00032876,14]
[334395393,1723029057052,-500.0,0.00032876,14]
[334395396,1723029057061,-3407.79,0.00032876,14]
[334395398,1723029057072,-3407.79,0.00032876,14]
[334395399,1723029057082,-3407.79,0.00032876,14]
[334395401,1723029057091,-3407.79,0.00032876,14]
[334395404,1723029057101,-3407.79,0.00032876,14]
[334395406,1723029057111,-3407.79,0.00032876,14]
[334395408,1723029057120,-3407.79,0.00032876,14]
[334395410,1723029057130,-500.0,0.00032876,14]
[334395412,1723029057139,-3407.79,0.00032876,14]
[334395414,1723029057149,-3407.79,0.00032876,14]
[334395416,1723029057158,-2547.19,0.00032876,14]
[334395418,1723029057168,-3407.79,0.00032876,14]
[334395420,1723029057178,-3407.79,0.00032876,14]
[334395422,1723029057187,-3407.79,0.00032876,14]
[334395424,1723029057197,-3407.79,0.00032876,14]
[334395426,1723029057206,-3407.79,0.00032876,14]
[334395428,1723029057216,-3407.79,0.00032876,14]
[334395438,1723029057368,-3407.79,0.00032876,14]
[334395439,1723029057377,-3407.79,0.00032876,14]
[334395440,1723029057387,-1757.34,0.00032876,14]
[334395441,1723029057396,-3407.79,0.00032876,14]
[334395442,1723029057405,-151.0,0.00032876,7]
[334395443,1723029057415,-3407.81,0.00032876,14]
[334395444,1723029057424,-1138.49,0.00032876,14]
[334395445,1723029057434,-943.14,0.00032876,14]
[334395446,1723029057443,-1214.45,0.00032876,14]
[334395447,1723029057452,-1052.211407,0.00032876,7]
[334395448,1723029057462,-814.59,0.00032876,14]
[334395449,1723029057471,-500.0,0.00032876,14]
[334395450,1723029057481,-1052.211407,0.00032876,7]
[334395451,1723029057490,-1052.211407,0.00032876,7]
[334395452,1723029057499,-1713.75,0.00032876,14]
[334395453,1723029057508,-500.0,0.00032876,14]
[334395454,1723029057518,-1052.211407,0.00032876,7]
[334395455,1723029057527,-500.0,0.00032876,14]
[334395456,1723029057536,-849.27,0.00032876,14]
[334395457,1723029057545,-1052.211407,0.00032876,7]
[334395458,1723029057555,-1052.211411,0.00032876,7]
[334395459,1723029057564,-500.0,0.00032876,14]
[334395460,1723029057574,-600.60629249,0.00032876,14]
[334395461,1723029057584,-3000.0,0.0003288,13]
[334395462,1723029057593,-3000.0,0.0003289,13]
[334395463,1723029057603,-150.112233,0.000329,9]
[334395464,1723029057612,-3000.0,0.000329,13]
[334395465,1723029057621,-3000.0,0.0003291,13]
[334395466,1723029057631,-3000.0,0.0003292,13]
[334395467,1723029057640,-3000.0,0.0003293,14]
[334395468,1723029057650,-3000.0,0.0003294,14]
[334395469,1723029057659,-3000.0,0.0003295,14]
[334395470,1723029057668,-3000.0,0.0003296,14]
[334395471,1723029057677,-3000.0,0.0003297,14]
[334395472,1723029057686,-3000.0,0.0003298,14]
[334395473,1723029057695,-3000.0,0.0003299,14]
[334395474,1723029057704,-138563.4260975,0.00033,30]
[334395475,1723029057714,-127401.30721425,0.00033,120]
[334395476,1723029057723,-500.0,0.00033,2]
[334395477,1723029057733,-3000.0,0.00033,14]
[334395478,1723029057742,-237.0,0.00033,2]
[334395479,1723029057751,-237.0,0.00033,2]
[334395480,1723029057761,-1050.7976,0.00033,2]
[334395481,1723029057771,-3000.0,0.0003301,14]
[334395482,1723029057780,-3000.0,0.0003302,14]
[334395483,1723029057790,-3000.0,0.0003303,14]
[334395484,1723029057799,-3000.0,0.0003304,14]
[334395485,1723029057808,-3000.0,0.0003305,14]
[334395486,1723029057818,-3000.0,0.0003306,14]
[334395487,1723029057827,-214.3156178,0.00033068,2]
[334395488,1723029057838,-153.0,0.00033068,2]
[334395489,1723029057847,-294.4233554,0.00033068,2]
[334395490,1723029057856,-207.1149566,0.00033068,2]
[334395491,1723029057866,-207.1149566,0.00033068,2]
[334395492,1723029057875,-294.4233554,0.00033068,2]
[334395493,1723029057884,-153.0,0.00033068,2]
[334395494,1723029057893,-207.1149566,0.00033068,2]
[334395495,1723029057903,-294.4233554,0.00033068,2]
[334395496,1723029057912,-153.0,0.00033068,2]
[334395497,1723029057922,-590.6322226,0.00033068,2]
[334395498,1723029057931,-294.4233554,0.00033068,2]
[334395499,1723029057940,-294.4233554,0.00033068,2]
[334395501,1723029057950,-294.4233554,0.00033068,2]
[334395503,1723029057960,-153.0,0.00033068,2]
[334395505,1723029057969,-294.4233554,0.00033068,2]
[334395507,1723029057978,-153.0,0.00033068,2]
[334395509,1723029057989,-153.0,0.00033068,2]
[334395511,1723029058001,-294.4233554,0.00033068,2]
[334395513,1723029058010,-294.4233554,0.00033068,2]
[334395515,1723029058022,-153.0,0.00033068,2]
[334395517,1723029058031,-306.0,0.00033068,2]
[334395519,1723029058041,-294.4233554,0.00033068,2]
[334395521,1723029058051,-294.4233554,0.00033068,2]
[334395522,1723029058060,-3000.0,0.0003307,14]
[334395524,1723029058071,-3000.0,0.0003308,14]
[334395526,1723029058081,-3000.0,0.0003309,14]
[334395527,1723029058090,-271.4386735,0.00033096,2]
[334395529,1723029058099,-271.4386735,0.00033096,2]
[334395530,1723029058108,-271.4386735,0.00033096,2]
[334395532,1723029058118,-3000.0,0.000331,14]
[334395534,1723029058127,-3000.0,0.0003311,14]
[334395536,1723029058137,-3000.0,0.0003312,14]
[334395538,1723029058146,-3000.0,0.0003313,14]
[334395540,1723029058156,-157.770575,0.00033136,2]
[334395542,1723029058166,-2602.09617,0.00033136,2]
[334395544,1723029058175,-2190.055433,0.00033136,2]
[334395547,1723029058184,-876.022173,0.00033136,2]
[334395549,1723029058193,-1040.838468,0.00033136,2]
[334395550,1723029058202,-350.408869,0.00033136,2]
[334395552,1723029058211,-416.335387,0.00033136,2]
[334395554,1723029058220,-183.57603,0.00033136,2]
[334395555,1723029058230,-3000.0,0.0003314,14]
[334395556,1723029058240,-2000.0,0.00033149,14]
[334395557,1723029058249,-244.37437511,0.0003315,14]
[334395559,1723029058258,-500.0,0.0003315,2]
[334395561,1723029058267,-501.81705116,0.0003315,14]
[334395562,1723029058276,-507.57319833,0.0003315,14]
[334395564,1723029058285,-1053.34,0.0003315,14]
[334395565,1723029058295,-500.0,0.0003315,14]
[334395566,1723029058305,-500.0,0.0003315,14]
[334395567,1723029058315,-500.0,0.0003315,14]
[334395568,1723029058325,-1009.34,0.0003315,14]
[334395569,1723029058336,-2387.52,0.0003315,14]
[334395570,1723029058345,-500.0,0.0003315,14]
[334395571,1723029058355,-500.0,0.0003315,14]
[334395572,1723029058364,-500.0,0.0003315,14]
[334395573,1723029058374,-500.0,0.0003315,14]
[334395574,1723029058383,-500.0,0.0003315,14]
[334395575,1723029058392,-540.78,0.0003315,14]
[334395576,1723029058402,-258.79684939,0.0003315,14]
[334395577,1723029058411,-558.5,0.0003315,14]
[334395578,1723029058421,-2183.56,0.0003315,14]
[334395579,1723029058431,-635.93,0.0003315,14]
[334395580,1723029058441,-614.31,0.0003315,14]
[334395581,1723029058450,-500.0,0.0003315,14]